[Event "9th Ferdowski Cup 2019"]
[Site "Mashhad"]
[Date "2019.03.02"]
[Round "3.1"]
[White "Mosadeghpour, Masoud"]
[Black "Daneshvar, Bardiya"]
[Result "1/2-1/2"]
[ECO "B15"]
[WhiteElo "2542"]
[BlackElo "2328"]
[Annotator "ChessBase"]
[PlyCount "120"]
[EventDate "2019.03.01"]
[EventType "swiss"]
[EventCountry "IRI"]
[SourceTitle "playchess.com"]
[Source "ChessBase"]
[SourceQuality "1"]
[TimeControl "5400+30"]

1. e4 {[%emt 0:07:10]} c6 {[%emt 0:00:00]} 2. d4 {[%emt 0:00:15]} d5 {[%emt 0:00:00]} 3. Nd2 {[%emt 0:01:04]} dxe4 {[%emt 0:00:00]} 4. Nxe4 {[%emt 0:00:05]} Nf6 {[%emt 0:00:00]} 5. Nxf6+ {[%emt 0:00:42]} exf6 {[%emt 0:00:07]} 6. c3 {[%emt 0:01:06]} Bd6 {[%emt 0:02:05]} 7. Bd3 {[%emt 0:00:07]} O-O {[%emt 0:00:28]} 8. Ne2 {[%emt 0:00:29]} Re8 {[%emt 0:02:38]} 9. Qc2 {[%emt 0:03:10]} g6 {[%emt 0:01:33]} 10. h4 {[%emt 0:03:08]} h5 {[%emt 0:06:51]} 11. Bh6 {[%emt 0:01:51]} Kh7 {[%emt 0:03:07]} 12. Bd2 {[%emt 0:03:01]} Be6 {[%emt 0:05:30]} 13. O-O-O {[%emt 0:00:39]} b5 {[%emt 0:07:44]} 14. f3 {[%emt 0:09:32]} Bc4 {[%emt 0:01:33]} 15. Rhe1 {[%emt 0:08:39]} Qa5 {[%emt 0:10:13]} 16. Nf4 {[%emt 0:04:56]} Bxd3 {[%emt 0:01:59]} 17. Qxd3 {[%emt 0:00:07]} Nd7 {[%emt 0:02:15]} 18. Kb1 {[%emt 0:01:36]} Bxf4 {[%emt 0:02:38]} 19. Bxf4 {[%emt 0:01:44]} b4 {[%emt 0:03:32]} 20. Rxe8 {[%emt 0:09:57]} Rxe8 {[%emt 0:00:07]} 21. c4 {[%emt 0:00:03]} Qd8 {[%emt 0:04:31]} 22. d5 {[%emt 0:03:32]} c5 {[%emt 0:00:36]} 23. g4 {[%emt 0:02:00]} hxg4 {[%emt 0:02:41]} 24. h5 {[%emt 0:03:13]} Qe7 {[%emt 0:05:32]} 25. Rh1 {[%emt 0:11:37]} Kg7 {[%emt 0:08:25]} 26. Bh6+ {[%emt 0:01:41]} Kg8 {[%emt 0:02:11]} 27. hxg6 {[%emt 0:00:09]} Ne5 {[%emt 0:00:11]} 28. gxf7+ {[%emt 0:00:06]} Qxf7 {[%emt 0:00:11]} 29. Qf5 {[%emt 0:01:01]} Qg6 {[%emt 0:05:28]} 30. Qxg6+ {[%emt 0:01:10]} Nxg6 {[%emt 0:00:02]} 31. fxg4 {[%emt 0:00:09]} Ne5 {[%emt 0:00:10]} 32. Re1 {[%emt 0:08:22]} Kf7 {[%emt 0:00:31]} 33. g5 {[%emt 0:01:19]} fxg5 {[%emt 0:00:58]} 34. Bxg5 {[%emt 0:08:39]} Nxc4 {[%emt 0:00:38]} 35. Rf1+ {[%emt 0:02:21]} Kg6 {[%emt 0:00:31]} 36. Rc1 {[%emt 0:00:07]} Nb6 {[%emt 0:02:04]} 37. Bh4 {[%emt 0:01:03]} Nxd5 {[%emt 0:00:55]} 38. Rxc5 {[%emt 0:00:05]} Re5 {[%emt 0:00:09]} 39. Kc1 {[%emt 0:01:20]} Nf4 {[%emt 0:00:46]} 40. Rxe5 {[%emt 0:01:59]} Nd3+ {[%emt 0:00:01]} 41. Kc2 {[%emt 0:00:03]} Nxe5 {[%emt 0:00:09]} 42. Bg3 {[%emt 0:00:55]} Nc6 {[%emt 0:00:12]} 43. Kd3 {[%emt 0:00:25]} Kf5 {[%emt 0:00:12]} 44. Kc4 {[%emt 0:00:04]} Ke6 {[%emt 0:00:05]} 45. Kc5 {[%emt 0:00:27]} Kd7 {[%emt 0:00:08]} 46. b3 {[%emt 0:00:33]} Ne7 {[%emt 0:00:42]} 47. Bd6 {[%emt 0:01:14]} Nc6 {[%emt 0:00:14]} 48. Kd5 {[%emt 0:00:32]} a5 {[%emt 0:00:35]} 49. Bg3 {[%emt 0:00:30]} a4 {[%emt 0:04:52]} 50. bxa4 {[%emt 0:00:05]} Na5 {[%emt 0:00:06]} 51. Be5 {[%emt 0:00:45]} Kc8 {[%emt 0:00:11]} 52. Kc5 {[%emt 0:00:35]} Kb7 {[%emt 0:00:08]} 53. Kb5 {[%emt 0:00:24]} Nc6 {[%emt 0:00:07]} 54. Bf6 {[%emt 0:00:04]} Na7+ {[%emt 0:00:06]} 55. Kxb4 {[%emt 0:00:40]} Nc6+ {[%emt 0:00:08]} 56. Kc5 {[%emt 0:00:08]} Na7 {[%emt 0:00:08]} 57. Bd4 {[%emt 0:00:48]} Nc6 {[%emt 0:00:06]} 58. Bf2 {[%emt 0:00:05]} Ne5 {[%emt 0:00:11]} 59. Kb5 {[%emt 0:00:15]} Nc6 {[%emt 0:00:08]} 60. a3 {[%emt 0:00:32]} Nb8 {[%emt 0:00:08]} 1/2-1/2

[Event "9th Ferdowski Cup 2019"]
[Site "Mashhad"]
[Date "2019.03.02"]
[Round "3.4"]
[White "Gholami Orimi, Mahdi"]
[Black "Rastbod, Ali"]
[Result "0-1"]
[ECO "E51"]
[WhiteElo "2408"]
[BlackElo "2214"]
[Annotator "NA"]
[PlyCount "76"]
[EventDate "2019.03.01"]
[EventType "swiss"]
[EventCountry "IRI"]
[SourceTitle "playchess.com"]
[Source "ChessBase"]
[SourceQuality "1"]
[TimeControl "5400+30"]

1. d4 Nf6 {[%emt 0:09:45]} 2. c4 {[%emt 0:01:50]} e6 {[%emt 0:00:07]} 3. Nf3 {[%emt 0:00:28]} Bb4+ {[%emt 0:00:11]} 4. Nc3 {[%emt 0:02:01]} O-O {[%emt 0:00:47]} 5. e3 {[%emt 0:04:42]} d5 {[%emt 0:02:54]} 6. a3 {[%emt 0:02:05]} Bxc3+ {[%emt 0:02:51]} 7. bxc3 {[%emt 0:00:03]} c5 {[%emt 0:00:16]} 8. Bd3 {[%emt 0:07:29]} b6 {[%emt 0:01:48]} 9. cxd5 {[%emt 0:00:53]} exd5 {[%emt 0:00:06]} 10. Qe2 {[%emt 0:00:57]} Bg4 {[%emt 0:02:26]} 11. O-O {[%emt 0:01:53]} Nc6 {[%emt 0:04:12]} 12. Bb2 {[%emt 0:01:08]} Re8 {[%emt 0:02:53]} 13. Rad1 {[%emt 0:02:11]} c4 {[%emt 0:00:25]} 14. Bc2 {[%emt 0:01:52]} Ne4 {[%emt 0:00:10]} 15. h3 {[%emt 0:11:36]} Bh5 {[%emt 0:01:59]} 16. g4 {[%emt 0:08:51]} Bg6 {[%emt 0:00:02]} 17. Kg2 {[%emt 0:14:17]} f5 {[%emt 0:02:39]} 18. Ba4 {[%emt 0:02:17]} Qd6 {[%emt 0:25:21]} 19. Nh4 {[%emt 0:03:14]} f4 {[%emt 0:03:19]} 20. Bc2 {[%emt 0:13:05]} Qf6 {[%emt 0:07:25]} 21. Nxg6 {[%emt 0:01:22]} hxg6 {[%emt 0:00:01]} 22. Qf3 {[%emt 0:01:22]} fxe3 {[%emt 0:04:13]} 23. Qxe3 {[%emt 0:01:41]} Ng5 {[%emt 0:00:40]} 24. Qg3 {[%emt 0:02:36]} Re2 {[%emt 0:00:08]} 25. Rc1 {[%emt 0:01:32]} Rf8 {[%emt 0:04:54]} 26. a4 {[%emt 0:01:14]} Qe6 {[%emt 0:06:01]} 27. Ba3 {[%emt 0:06:22]} Rf3 {[%emt 0:00:53]} 28. Qh4 {[%emt 0:00:38]} Rxc2 {[%emt 0:03:28]} 29. Rxc2 {[%emt 0:02:34]} Qe4 {[%emt 0:00:25]} 30. Qxg5 {[%emt 0:01:26]} Rxc3+ {[%emt 0:01:19]} 31. f3 {[%emt 0:01:45]} Rxc2+ {[%emt 0:00:11]} 32. Kg3 {[%emt 0:01:46]} Qe2 {[%emt 0:01:43]} 33. Qxg6 {[%emt 0:00:28]} Nxd4 {[%emt 0:00:51]} 34. Qg5 {[%emt 0:00:44]} Qg2+ {[%emt 0:02:42]} 35. Kh4 {[%emt 0:00:04]} Nxf3+ {[%emt 0:00:09]} 36. Rxf3 {[%emt 0:00:20]} Qxf3 {[%emt 0:00:01]} 37. Qd8+ {[%emt 0:00:58]} Kh7 {[%emt 0:00:07]} 38. Qe8 {[%emt 0:00:29]} Qf6+ {[%emt 0:00:59]} 0-1

[Event "9th Ferdowski Cup 2019"]
[Site "Mashhad"]
[Date "2019.03.03"]
[Round "4.2"]
[White "Kreisl, Robert"]
[Black "Mosadeghpour, Masoud"]
[Result "1/2-1/2"]
[ECO "A45"]
[WhiteElo "2427"]
[BlackElo "2542"]
[Annotator "RC"]
[PlyCount "68"]
[EventDate "2019.03.01"]
[EventType "swiss"]
[EventCountry "IRI"]
[SourceTitle "playchess.com"]
[Source "ChessBase"]
[SourceQuality "1"]
[TimeControl "5400+30"]

1. d4 {[%emt 0:00:00]} Nf6 {[%emt 0:02:18]} 2. Bg5 {[%emt 0:00:00]} d5 {[%emt 0:01:43]} 3. Bxf6 {[%emt 0:00:56]} exf6 {[%emt 0:00:08]} 4. e3 {[%emt 0:00:10]} Bd6 {[%emt 0:00:11]} 5. c4 {[%emt 0:01:20]} dxc4 {[%emt 0:01:02]} 6. Bxc4 {[%emt 0:00:07]} O-O {[%emt 0:00:06]} 7. Nc3 {[%emt 0:00:44]} c5 {[%emt 0:02:45]} 8. dxc5 {[%emt 0:03:42]} Be7 {[%emt 0:01:09]} 9. Qxd8 {[%emt 0:04:01]} Bxd8 {[%emt 0:00:02]} 10. Rc1 {[%emt 0:02:43]} Nd7 {[%emt 0:04:06]} 11. b4 {[%emt 0:02:44]} a5 {[%emt 0:00:14]} 12. a3 {[%emt 0:00:17]} axb4 {[%emt 0:00:31]} 13. axb4 {[%emt 0:00:02]} Ne5 {[%emt 0:02:33]} 14. Be2 {[%emt 0:00:58]} Nc6 {[%emt 0:03:06]} 15. b5 {[%emt 0:12:21]} Na5 {[%emt 0:06:27]} 16. Bd1 {[%emt 0:06:11]} Be6 {[%emt 0:01:20]} 17. Nf3 {[%emt 0:05:31]} Rc8 {[%emt 0:17:46]} 18. Na4 {[%emt 0:04:56]} Be7 {[%emt 0:00:19]} 19. Nd4 {[%emt 0:01:07]} Bc4 {[%emt 0:04:16]} 20. Bg4 {[%emt 0:12:34]} Rc7 {[%emt 0:24:19]} 21. b6 {[%emt 0:01:52]} Rxc5 {[%emt 0:00:01]} 22. Nxc5 {[%emt 0:00:07]} Bxc5 {[%emt 0:00:02]} 23. Be2 {[%emt 0:00:29]} Bxd4 {[%emt 0:00:30]} 24. Bxc4 {[%emt 0:00:27]} Bxb6 {[%emt 0:00:13]} 25. Bd5 {[%emt 0:01:39]} Rd8 {[%emt 0:00:02]} 26. e4 {[%emt 0:00:44]} f5 {[%emt 0:00:01]} 27. f3 {[%emt 0:02:51]} fxe4 {[%emt 0:01:02]} 28. fxe4 {[%emt 0:00:02]} Nc6 {[%emt 0:00:16]} 29. Bxc6 {[%emt 0:05:48]} Rc8 {[%emt 0:02:01]} 30. Rb1 {[%emt 0:00:37]} Rxc6 {[%emt 0:00:54]} 31. Ke2 {[%emt 0:00:17]} Re6 {[%emt 0:00:48]} 32. Kd3 Rd6+ {[%emt 0:00:44]} 33. Ke2 {[%emt 0:01:10]} Re6 {[%emt 0:00:06]} 34. Kd3 {[%emt 0:13:47]} Rd6+ {[%emt 0:00:21]} 1/2-1/2

[Event "9th Ferdowski Cup 2019"]
[Site "Mashhad"]
[Date "2019.03.07"]
[Round "8.4"]
[White "Lorparizangeneh, Shahin"]
[Black "Dilanyan, Grigor"]
[Result "1/2-1/2"]
[ECO "E10"]
[WhiteElo "2493"]
[BlackElo "2244"]
[Annotator "RC"]
[PlyCount "47"]
[EventDate "2019.03.01"]
[EventType "swiss"]
[EventCountry "IRI"]
[SourceTitle "playchess.com"]
[Source "ChessBase"]
[SourceQuality "1"]
[TimeControl "5400+30"]

1. d4 Nf6 {[%emt 0:14:29]} 2. Nf3 {[%emt 0:00:00]} c5 {[%emt 0:00:42]} 3. d5 {[%emt 0:00:16]} e6 {[%emt 0:00:24]} 4. c4 {[%emt 0:05:18]} b5 {[%emt 0:00:31]} 5. Bg5 {[%emt 0:00:19]} exd5 {[%emt 0:00:13]} 6. cxd5 {[%emt 0:00:47]} d6 {[%emt 0:00:09]} 7. e4 {[%emt 0:00:50]} a6 {[%emt 0:00:01]} 8. a4 {[%emt 0:00:45]} Be7 {[%emt 0:00:25]} 9. Bd3 {[%emt 0:25:52]} Nxd5 {[%emt 0:11:01]} 10. Bxe7 {[%emt 0:07:11]} Nxe7 {[%emt 0:00:02]} 11. axb5 {[%emt 0:00:07]} O-O {[%emt 0:00:07]} 12. O-O {[%emt 0:00:31]} Bb7 {[%emt 0:04:44]} 13. Nc3 {[%emt 0:01:53]} axb5 {[%emt 0:10:06]} 14. Rxa8 {[%emt 0:00:14]} Bxa8 {[%emt 0:00:01]} 15. Bxb5 {[%emt 0:00:37]} Qb6 {[%emt 0:17:04]} 16. Nd2 {[%emt 0:08:55]} d5 {[%emt 0:10:53]} 17. exd5 {[%emt 0:00:15]} Nxd5 {[%emt 0:01:07]} 18. Nc4 {[%emt 0:00:40]} Qd8 {[%emt 0:02:06]} 19. Nxd5 {[%emt 0:01:26]} Bxd5 {[%emt 0:00:06]} 20. Ne3 {[%emt 0:02:48]} Be6 {[%emt 0:00:09]} 21. Qxd8 {[%emt 0:08:40]} Rxd8 {[%emt 0:00:02]} 22. Rc1 {[%emt 0:00:05]} Rd2 {[%emt 0:02:42]} 23. Rxc5 {[%emt 0:06:35]} Rxb2 {[%emt 0:00:09]} 24. h4 {[%emt 0:00:08]} 1/2-1/2